fUSD/lending_fUSD_20260114
["ID","MTS","AMOUNT","RATE_DAILY","PERIOD"]
[401728651,1768349443702,-1176.89445691,0.00016438,2]
[401728652,1768349443712,-1176.89445691,0.00016438,2]
[401728653,1768349443723,-1176.89445691,0.00016438,2]
[401728654,1768349443733,-1176.89445691,0.00016438,2]
[401728655,1768349443742,-1176.89445691,0.00016438,2]
[401728656,1768349443752,-500.0,0.00016438,2]
[401728657,1768349443763,-1176.89445691,0.00016438,2]
[401728658,1768349443772,-1176.89445691,0.00016438,2]
[401728659,1768349443782,-1176.89445691,0.00016438,2]
[401728660,1768349443792,-1176.89445691,0.00016438,2]
[401728662,1768349443802,-1176.89445691,0.00016438,2]
[401728663,1768349443812,-1176.89445691,0.00016438,2]
[401728664,1768349443823,-1176.89445691,0.00016438,2]
[401728665,1768349443833,-500.0,0.00016438,2]
[401728666,1768349443842,-500.0,0.00016438,2]
[401728667,1768349443852,-500.0,0.00016438,2]
[401728668,1768349443861,-500.0,0.00016438,2]
[401728669,1768349443872,-1131.1,0.00016438,2]
[401728670,1768349443882,-500.0,0.00016438,2]
[401728671,1768349443892,-500.0,0.00016438,2]
[401728672,1768349443901,-500.0,0.00016438,2]
[401728673,1768349443911,-520.24416025,0.00016438,2]
[401728674,1768349443921,-500.0,0.00016438,2]
[401728675,1768349443930,-500.0,0.00016438,2]
[401728676,1768349443940,-500.0,0.00016438,2]
[401728677,1768349443949,-500.0,0.00016438,2]
[401728678,1768349443958,-3651.63,0.00016438,2]
[401728679,1768349443967,-500.0,0.00016438,2]
[401728680,1768349443977,-533.52,0.00016438,2]
[401728681,1768349443986,-500.0,0.00016438,2]
[401728682,1768349443998,-500.0,0.00016438,2]
[401728683,1768349444007,-500.0,0.00016438,2]
[401728684,1768349444016,-500.0,0.00016438,2]
[401728685,1768349444026,-2279.93,0.00016438,2]
[401728686,1768349444036,-500.0,0.00016438,2]
[401728687,1768349444046,-500.0,0.00016438,2]
[401728688,1768349444055,-500.0,0.00016438,2]
[401728689,1768349444064,-500.0,0.00016438,2]
[401728690,1768349444073,-798.58,0.00016438,2]
[401728691,1768349444083,-500.0,0.00016438,2]
[401728692,1768349444092,-500.0,0.00016438,2]
[401728693,1768349444101,-500.0,0.00016438,2]
[401728694,1768349444110,-500.0,0.00016438,2]
[401728695,1768349444120,-302.92485328,0.00016438,2]
[401728696,1768349444129,-3026.78,0.00016438,2]
[401728697,1768349444139,-329.59146382,0.00016438,2]
[401728698,1768349444148,-6438.83,0.00016438,2]
[401728699,1768349444157,-500.0,0.00016438,2]
[401728700,1768349444167,-212.57819355,0.00016438,2]
[401728701,1768349444176,-500.0,0.00016438,2]
[401728702,1768349444186,-500.0,0.00016438,2]
[401728703,1768349444195,-500.0,0.00016438,2]
[401728704,1768349444204,-500.0,0.00016438,2]
[401728705,1768349444214,-500.0,0.00016438,2]
[401728706,1768349444223,-1392.52,0.00016438,2]
[401728707,1768349444233,-500.0,0.00016438,2]
[401728708,1768349444246,-500.0,0.00016438,2]
[401728709,1768349444255,-500.0,0.00016438,2]
[401728710,1768349444265,-500.0,0.00016438,2]
[401728711,1768349444274,-500.0,0.00016438,2]
[401728712,1768349444284,-500.0,0.00016438,2]
[401728713,1768349444293,-836.52,0.00016438,2]
[401728714,1768349444303,-485.67052675,0.00016438,2]
[401728715,1768349444312,-500.0,0.00016438,2]
[401728716,1768349444322,-500.0,0.00016438,2]
[401728717,1768349444331,-500.0,0.00016438,2]
[401728718,1768349444341,-382.97817499,0.00016438,2]
[401728719,1768349444350,-500.0,0.00016438,2]
[401728720,1768349444359,-500.0,0.00016438,2]
[401728721,1768349444369,-957.61,0.00016438,2]
[401728722,1768349444379,-500.0,0.00016438,2]
[401728723,1768349444388,-500.0,0.00016438,2]
[401728724,1768349444397,-500.0,0.00016438,2]
[401728725,1768349444406,-500.0,0.00016438,2]
[401728726,1768349444416,-500.0,0.00016438,2]
[401728727,1768349444426,-275.89917176,0.00016438,2]
[401728728,1768349444438,-500.0,0.00016438,2]
[401728729,1768349444447,-309.61911089,0.00016438,2]
[401728730,1768349444456,-661.19,0.00016438,2]
[401728731,1768349444466,-500.0,0.00016438,2]
[401728732,1768349444475,-500.0,0.00016438,2]
[401728733,1768349444484,-500.0,0.00016438,2]
[401728734,1768349444494,-1162.54208548,0.00016438,2]
[401728735,1768349444503,-1162.54208548,0.00016438,2]
[401728736,1768349444513,-1162.54208548,0.00016438,2]
[401728737,1768349444523,-1162.54208548,0.00016438,2]
[401728738,1768349444532,-1162.54208548,0.00016438,2]
[401728739,1768349444542,-1136.09,0.00016438,2]
[401728740,1768349444552,-1162.54208548,0.00016438,2]
[401728741,1768349444562,-1162.54208548,0.00016438,2]
[401728742,1768349444571,-1162.54208548,0.00016438,2]
[401728743,1768349444581,-1162.54208548,0.00016438,2]
[401728744,1768349444590,-1162.54208548,0.00016438,2]
[401728745,1768349444599,-1162.54208548,0.00016438,2]
[401728746,1768349444609,-500.0,0.00016438,2]
[401728747,1768349444618,-1162.54208548,0.00016438,2]
[401728748,1768349444629,-1162.54208548,0.00016438,2]
[401728749,1768349444638,-1162.54208548,0.00016438,2]
[401728750,1768349444649,-1162.54208548,0.00016438,2]
[401728751,1768349444658,-1162.54208548,0.00016438,2]
[401728752,1768349444667,-1162.54208548,0.00016438,2]
[401728753,1768349444676,-1162.54208548,0.00016438,2]
[401728754,1768349444686,-1162.54208548,0.00016438,2]
[401728755,1768349444695,-1162.54208548,0.00016438,2]
[401728756,1768349444705,-1162.54208548,0.00016438,2]
[401728757,1768349444714,-1162.54208548,0.00016438,2]
[401728758,1768349444723,-1162.54208548,0.00016438,2]
[401728759,1768349444732,-500.0,0.00016438,2]
[401728760,1768349444742,-500.0,0.00016438,2]
[401728761,1768349444751,-1322.38,0.00016438,2]
[401728762,1768349444760,-500.0,0.00016438,2]
[401728763,1768349444770,-500.0,0.00016438,2]
[401728764,1768349444779,-500.0,0.00016438,2]
[401728765,1768349444787,-500.0,0.00016438,2]
[401728766,1768349444797,-500.0,0.00016438,2]
[401728767,1768349444806,-500.0,0.00016438,2]
[401728768,1768349444815,-500.0,0.00016438,2]
[401728769,1768349444824,-500.0,0.00016438,2]
[401728770,1768349444834,-500.0,0.00016438,2]
[401728771,1768349444842,-500.0,0.00016438,2]
[401728772,1768349444852,-500.0,0.00016438,2]
[401728773,1768349444861,-500.0,0.00016438,2]
[401728774,1768349444870,-500.0,0.00016438,2]
[401728775,1768349444879,-500.0,0.00016438,2]
[401728776,1768349444890,-500.0,0.00016438,2]
[401728777,1768349444903,-500.0,0.00016438,2]
[401728778,1768349444914,-500.0,0.00016438,2]
[401728779,1768349444926,-500.0,0.00016438,2]
[401728780,1768349444937,-500.0,0.00016438,2]
[401728781,1768349444948,-500.0,0.00016438,2]
[401728782,1768349444958,-500.0,0.00016438,2]
[401728783,1768349444969,-500.0,0.00016438,2]
[401728784,1768349444979,-500.0,0.00016438,2]
[401728785,1768349444992,-1672.72588223,0.00016438,2]
[401728786,1768349445003,-1218.82,0.00016438,2]
[401728787,1768349445013,-1672.72588223,0.00016438,2]
[401728788,1768349445024,-1672.72588223,0.00016438,2]
[401728789,1768349445036,-500.0,0.00016438,2]
[401728790,1768349445047,-500.0,0.00016438,2]
[401728791,1768349445059,-1672.72588223,0.00016438,2]
[401728792,1768349445070,-1672.72588223,0.00016438,2]
[401728793,1768349445084,-1672.72588223,0.00016438,2]
[401728794,1768349445095,-1672.72588223,0.00016438,2]
[401728795,1768349445106,-1672.72588223,0.00016438,2]
[401728796,1768349445116,-1672.72588223,0.00016438,2]
[401728797,1768349445126,-1672.72588223,0.00016438,2]
[401728798,1768349445137,-1672.72588223,0.00016438,2]
[401728799,1768349445147,-151.0,0.00016438,2]
[401728800,1768349445158,-587.0,0.00016439,2]
[401728801,1768349445169,-165.01,0.0001644,2]
[401728802,1768349445180,-587.0,0.00016494,2]
[401728803,1768349445191,-587.0,0.00016548,2]
[401728804,1768349445202,-4009.30413762,0.0001655,2]
[401728805,1768349445214,-587.0,0.00016603,2]
[401728806,1768349445225,-587.0,0.00016658,2]
[401728808,1768349445237,-500.0,0.00016712,2]
[401728809,1768349445248,-151.0,0.00016712,2]
[401728810,1768349445259,-500.0,0.00016712,2]
[401728812,1768349445271,-500.0,0.00016712,2]
[401728814,1768349445283,-637.06596701,0.00016712,2]
[401728816,1768349445293,-703.69,0.00016712,2]
[401728818,1768349445305,-606.67,0.00016712,2]
[401728821,1768349445317,-500.0,0.00016712,2]
[401728823,1768349445328,-500.0,0.00016712,2]
[401728825,1768349445340,-500.0,0.00016712,2]
[401728827,1768349445351,-500.0,0.00016712,2]
[401728829,1768349445362,-500.0,0.00016712,2]
[401728830,1768349445375,-500.0,0.00016712,2]
[401728831,1768349445387,-534.48689544,0.00016712,2]
[401728832,1768349445397,-500.0,0.00016712,2]
[401728833,1768349445408,-500.0,0.00016712,2]
[401728834,1768349445420,-500.0,0.00016712,2]
[401728835,1768349445430,-500.0,0.00016712,2]
[401728836,1768349445443,-500.0,0.00016712,2]
[401728837,1768349445453,-437.08931781,0.00016712,2]
[401728838,1768349445464,-500.0,0.00016712,2]
[401728839,1768349445475,-865.04,0.00016712,2]
[401728840,1768349445485,-392.65019862,0.00016712,2]
[401728841,1768349445496,-500.0,0.00016712,2]
[401728842,1768349445506,-500.0,0.00016712,2]
[401728843,1768349445516,-767.4,0.00016712,2]
[401728844,1768349445526,-500.0,0.00016712,2]
[401728845,1768349445536,-500.0,0.00016712,2]
[401728846,1768349445546,-531.24,0.00016712,2]
[401728847,1768349445557,-374.23480578,0.00016712,2]
[401728848,1768349445569,-500.0,0.00016712,2]
[401728849,1768349445582,-171.85824758,0.00016712,2]
[401728850,1768349445592,-718.56,0.00016712,2]
[401728851,1768349445602,-500.0,0.00016712,2]
[401728852,1768349445612,-500.0,0.00016712,2]
[401728853,1768349445622,-500.0,0.00016712,2]
[401728854,1768349445632,-500.0,0.00016712,2]
[401728855,1768349445642,-789.39,0.00016712,2]
[401728856,1768349445653,-500.0,0.00016712,2]
[401728857,1768349445667,-500.0,0.00016712,2]
[401728858,1768349445682,-520.84583039,0.00016712,2]
[401728859,1768349445694,-500.0,0.00016712,2]
[401728860,1768349445704,-500.0,0.00016712,2]
[401728861,1768349445715,-1671.94,0.00016712,2]
[401728862,1768349445724,-500.0,0.00016712,2]
[401728863,1768349445734,-500.0,0.00016712,2]
[401728864,1768349445744,-500.0,0.00016712,2]
[401728865,1768349445754,-500.0,0.00016712,2]
[401728866,1768349445764,-890.39,0.00016712,2]
[401728867,1768349445775,-500.0,0.00016712,2]
[401728868,1768349445785,-218.7753292,0.00016712,2]
[401728869,1768349445795,-500.0,0.00016712,2]
[401728870,1768349445805,-500.0,0.00016712,2]
[401728871,1768349445815,-335.09062932,0.00016712,2]
[401728872,1768349445825,-588.85,0.00016712,2]
[401728873,1768349445835,-376.7546064,0.00016712,2]
[401728875,1768349445846,-500.0,0.00016712,2]
[401728877,1768349445855,-500.0,0.00016712,2]
[401728879,1768349445865,-521.68,0.00016712,2]
[401728881,1768349445876,-500.0,0.00016712,2]
[401728883,1768349445887,-500.0,0.00016712,2]
[401728886,1768349445897,-548.84,0.00016712,2]
[401728887,1768349445908,-500.0,0.00016712,2]
[401728890,1768349445919,-500.0,0.00016712,2]
[401728892,1768349445929,-532.16159996,0.00016712,2]
[401728894,1768349445945,-300.0,0.00016712,2]
[401728895,1768349445956,-817.22,0.00016712,2]
[401728896,1768349445967,-500.0,0.00016712,2]
[401728897,1768349445977,-491.38600292,0.00016712,2]
[401728898,1768349445990,-500.0,0.00016712,2]
[401728899,1768349446001,-500.0,0.00016712,2]
[401728900,1768349446011,-500.0,0.00016712,2]
[401728901,1768349446021,-500.0,0.00016712,2]
[401728902,1768349446031,-500.0,0.00016712,2]
[401728903,1768349446042,-500.0,0.00016712,2]
[401728904,1768349446052,-500.0,0.00016712,2]
[401728905,1768349446063,-527.05,0.00016712,2]
[401728906,1768349446075,-547.46,0.00016712,2]
[401728907,1768349446084,-260.38488829,0.00016712,2]
[401728908,1768349446095,-500.0,0.00016712,2]
[401728909,1768349446108,-500.0,0.00016712,2]
[401728910,1768349446119,-268.080528,0.00016712,2]
[401728911,1768349446128,-500.0,0.00016712,2]
[401728912,1768349446138,-500.0,0.00016712,2]
[401728913,1768349446149,-500.0,0.00016712,2]
[401728914,1768349446159,-500.0,0.00016712,2]
[401728915,1768349446170,-500.0,0.00016712,2]
[401728916,1768349446179,-500.0,0.00016712,2]
[401728917,1768349446194,-500.0,0.00016712,2]
[401728918,1768349446204,-602.78269563,0.00016712,2]
[401728919,1768349446214,-500.0,0.00016712,2]
[401728920,1768349446225,-500.0,0.00016712,2]
[401728921,1768349446235,-735.02,0.00016712,2]
[401728922,1768349446246,-1063.06,0.00016712,2]
[401728923,1768349446256,-500.0,0.00016712,2]
[401728924,1768349446267,-400.32303857,0.00016712,2]
[401728925,1768349446278,-500.0,0.00016712,2]
[401728926,1768349446289,-524.64,0.00016712,2]
[401728927,1768349446300,-500.0,0.00016712,2]
[401728928,1768349446310,-500.0,0.00016712,2]
[401728929,1768349446321,-500.0,0.00016712,2]
[401728930,1768349446332,-500.0,0.00016712,2]
[401728931,1768349446345,-500.0,0.00016712,2]
[401728932,1768349446355,-310.57200002,0.00016712,2]
[401728933,1768349446366,-514.11,0.00016712,2]
[401728934,1768349446377,-1325.73,0.00016712,2]
[401728935,1768349446387,-500.0,0.00016712,2]
[401728936,1768349446398,-500.0,0.00016712,2]
[401728937,1768349446409,-500.0,0.00016712,2]
[401728938,1768349446419,-500.0,0.00016712,2]
[401728939,1768349446437,-500.0,0.00016712,2]
[401728940,1768349446448,-1623.89,0.00016712,2]
[401728941,1768349446458,-500.0,0.00016712,2]
[401728942,1768349446468,-500.0,0.00016712,2]
[401728943,1768349446479,-500.0,0.00016712,2]
[401728944,1768349446489,-916.54,0.00016712,2]
[401728945,1768349446500,-500.0,0.00016712,2]
[401728946,1768349446511,-714.82,0.00016712,2]
[401728947,1768349446522,-534.24209032,0.00016712,2]
[401728948,1768349446532,-500.0,0.00016712,2]
[401728949,1768349446542,-500.0,0.00016712,2]
[401728950,1768349446553,-500.0,0.00016712,2]
[401728951,1768349446563,-410.66670019,0.00016712,2]
[401728952,1768349446573,-500.0,0.00016712,2]
[401728953,1768349446583,-500.0,0.00016712,2]
[401728954,1768349446593,-500.0,0.00016712,2]
[401728955,1768349446604,-410.07298983,0.00016712,2]
[401728956,1768349446614,-500.0,0.00016712,2]
[401728957,1768349446624,-500.0,0.00016712,2]
[401728958,1768349446635,-500.0,0.00016712,2]
[401728959,1768349446645,-495.16114861,0.00016712,2]
[401728960,1768349446656,-500.0,0.00016712,2]
[401728961,1768349446666,-500.0,0.00016712,2]
[401728962,1768349446676,-500.0,0.00016712,2]
[401728963,1768349446688,-500.0,0.00016712,2]
[401728964,1768349446699,-500.0,0.00016712,2]
[401728965,1768349446709,-500.0,0.00016712,2]
[401728966,1768349446719,-500.0,0.00016712,2]
[401728967,1768349446729,-249.88179213,0.00016712,2]
[401728968,1768349446740,-792.13,0.00016712,2]
[401728969,1768349446750,-500.0,0.00016712,2]
[401728970,1768349446761,-500.0,0.00016712,2]
[401728971,1768349446771,-711.81,0.00016712,2]
[401728972,1768349446782,-500.0,0.00016712,2]
[401728973,1768349446792,-500.0,0.00016712,2]
[401728974,1768349446803,-500.0,0.00016712,2]
[401728975,1768349446814,-500.0,0.00016712,2]
[401728976,1768349446824,-500.0,0.00016712,2]
[401728977,1768349446834,-500.0,0.00016712,2]
[401728978,1768349446844,-500.0,0.00016712,2]
[401728979,1768349446855,-500.0,0.00016712,2]
[401728980,1768349446865,-500.0,0.00016712,2]
[401728981,1768349446876,-500.0,0.00016712,2]
[401728982,1768349446886,-500.0,0.00016712,2]
[401728983,1768349446897,-500.0,0.00016712,2]
[401728984,1768349446908,-500.0,0.00016712,2]
[401728985,1768349446919,-500.0,0.00016712,2]
[401728986,1768349446930,-500.0,0.00016712,2]
[401728987,1768349446944,-500.0,0.00016712,2]
[401728988,1768349446954,-500.0,0.00016712,2]
[401728989,1768349446965,-594.59,0.00016712,2]
[401728990,1768349446975,-500.0,0.00016712,2]
[401728991,1768349446985,-500.0,0.00016712,2]
[401728992,1768349446996,-571.65,0.00016712,2]
[401728993,1768349447011,-500.0,0.00016712,2]
[401728994,1768349447022,-997.85,0.00016712,2]
[401728995,1768349447032,-506.71893581,0.00016712,2]
[401728996,1768349447043,-500.0,0.00016712,2]
[401728997,1768349447053,-274.9822104,0.00016712,2]
[401728998,1768349447063,-646.25,0.00016712,2]
[401728999,1768349447073,-500.0,0.00016712,2]
[401729000,1768349447083,-500.0,0.00016712,2]
[401729001,1768349447093,-500.0,0.00016712,2]
[401729002,1768349447103,-500.0,0.00016712,2]
[401729003,1768349447114,-561.53139787,0.00016712,2]
[401729004,1768349447124,-500.0,0.00016712,2]
[401729005,1768349447134,-500.0,0.00016712,2]
[401729006,1768349447144,-500.0,0.00016712,2]
[401729007,1768349447154,-500.0,0.00016712,2]
[401729008,1768349447164,-500.0,0.00016712,2]
[401729009,1768349447175,-500.0,0.00016712,2]
[401729010,1768349447186,-500.0,0.00016712,2]
[401729011,1768349447196,-500.0,0.00016712,2]
[401729012,1768349447207,-500.0,0.00016712,2]
[401729013,1768349447217,-500.0,0.00016712,2]
[401729014,1768349447227,-500.0,0.00016712,2]
[401729015,1768349447237,-804.51,0.00016712,2]
[401729016,1768349447247,-500.0,0.00016712,2]
[401729017,1768349447257,-500.0,0.00016712,2]
[401729018,1768349447268,-448.23051995,0.00016712,2]
[401729019,1768349447278,-1029.17,0.00016712,2]
[401729020,1768349447288,-500.0,0.00016712,2]
[401729021,1768349447298,-5584.94,0.00016712,2]
[401729022,1768349447308,-500.0,0.00016712,2]
[401729023,1768349447319,-1004.2,0.00016712,2]
[401729024,1768349447330,-500.0,0.00016712,2]
[401729025,1768349447340,-500.0,0.00016712,2]
[401729026,1768349447350,-500.0,0.00016712,2]
[401729027,1768349447361,-500.0,0.00016712,2]
[401729028,1768349447371,-500.0,0.00016712,2]
[401729029,1768349447382,-500.0,0.00016712,2]
[401729030,1768349447392,-500.0,0.00016712,2]
[401729031,1768349447403,-500.0,0.00016712,2]
[401729032,1768349447413,-500.0,0.00016712,2]
[401729033,1768349447423,-500.0,0.00016712,2]
[401729034,1768349447433,-500.0,0.00016712,2]
[401729035,1768349447443,-500.0,0.00016712,2]
[401729036,1768349447454,-500.0,0.00016712,2]
[401729037,1768349447464,-500.0,0.00016712,2]
[401729038,1768349447474,-500.0,0.00016712,2]
[401729039,1768349447484,-500.0,0.00016712,2]
[401729040,1768349447495,-2374.33,0.00016712,2]
[401729041,1768349447505,-500.0,0.00016712,2]
[401729042,1768349447516,-3313.89,0.00016712,2]
[401729043,1768349447526,-500.0,0.00016712,2]
[401729044,1768349447536,-500.0,0.00016712,2]
[401729045,1768349447546,-387.24834912,0.00016712,2]
[401729046,1768349447557,-500.0,0.00016712,2]
[401729047,1768349447568,-2608.4,0.00016712,2]
[401729048,1768349447578,-500.0,0.00016712,2]
[401729049,1768349447589,-953.65,0.00016712,2]
[401729050,1768349447600,-500.0,0.00016712,2]
[401729051,1768349447610,-500.0,0.00016712,2]
[401729052,1768349447621,-1595.77,0.00016712,2]
[401729053,1768349447632,-500.0,0.00016712,2]
[401729054,1768349447642,-500.0,0.00016712,2]
[401729055,1768349447653,-500.0,0.00016712,2]
[401729056,1768349447663,-506.81676204,0.00016712,2]
[401729057,1768349447674,-3647.87,0.00016712,2]
[401729058,1768349447685,-6020.15,0.00016712,2]
[401729059,1768349447696,-500.0,0.00016712,2]
[401729060,1768349447707,-500.0,0.00016712,2]
[401729061,1768349447717,-500.0,0.00016712,2]
[401729062,1768349447727,-500.0,0.00016712,2]
[401729063,1768349447737,-1131.1,0.00016712,2]
[401729064,1768349447747,-500.0,0.00016712,2]
[401729065,1768349447758,-500.0,0.00016712,2]
[401729066,1768349447768,-500.0,0.00016712,2]
[401729067,1768349447778,-500.0,0.00016712,2]
[401729068,1768349447789,-500.0,0.00016712,2]
[401729069,1768349447799,-500.0,0.00016712,2]
[401729070,1768349447809,-3651.63,0.00016712,2]
[401729071,1768349447818,-500.0,0.00016712,2]
[401729072,1768349447829,-533.52,0.00016712,2]
[401729073,1768349447839,-500.0,0.00016712,2]
[401729074,1768349447849,-500.0,0.00016712,2]
[401729075,1768349447859,-500.0,0.00016712,2]
[401729076,1768349447869,-2279.93,0.00016712,2]
[401729077,1768349447879,-500.0,0.00016712,2]
[401729078,1768349447889,-328.49348402,0.00016712,2]
[401729079,1768349447898,-500.0,0.00016712,2]
[401729080,1768349447909,-500.0,0.00016712,2]
[401729081,1768349447919,-798.58,0.00016712,2]
[401729082,1768349447929,-500.0,0.00016712,2]
[401729083,1768349447939,-500.0,0.00016712,2]
[401729084,1768349447950,-509.81982183,0.00016712,2]
[401729085,1768349447960,-500.0,0.00016712,2]
[401729086,1768349447973,-3026.78,0.00016712,2]
[401729087,1768349447983,-6438.83,0.00016712,2]
[401729089,1768349448453,-500.0,0.00016712,2]
[401729090,1768349448479,-500.0,0.00016712,2]
[401729091,1768349448499,-500.0,0.00016712,2]
[401729092,1768349448509,-500.0,0.00016712,2]
[401729093,1768349448519,-1392.52,0.00016712,2]
[401729094,1768349448529,-500.0,0.00016712,2]
[401729095,1768349448539,-500.0,0.00016712,2]
[401729096,1768349448548,-500.0,0.00016712,2]
[401729097,1768349448558,-500.0,0.00016712,2]
[401729098,1768349448568,-836.52,0.00016712,2]
[401729099,1768349448578,-310.35459712,0.00016712,2]
[401729101,1768349448587,-500.0,0.00016712,2]
[401729103,1768349448597,-389.23216938,0.00016712,2]
[401729105,1768349448606,-500.0,0.00016712,2]
[401729107,1768349448616,-500.0,0.00016712,2]
[401729109,1768349448625,-957.61,0.00016712,2]
[401729111,1768349448635,-500.0,0.00016712,2]
[401729112,1768349448644,-500.0,0.00016712,2]
[401729113,1768349448654,-500.0,0.00016712,2]
[401729114,1768349448664,-483.81783522,0.00016712,2]
[401729115,1768349448674,-500.0,0.00016712,2]
[401729116,1768349448684,-661.19,0.00016712,2]
[401729117,1768349448693,-500.0,0.00016712,2]
[401729118,1768349448705,-1136.09,0.00016712,2]
[401729119,1768349448714,-500.0,0.00016712,2]
[401729120,1768349448724,-500.0,0.00016712,2]
[401729121,1768349448734,-500.0,0.00016712,2]
[401729122,1768349448743,-1322.38,0.00016712,2]
[401729123,1768349448752,-500.0,0.00016712,2]
[401729124,1768349448761,-500.0,0.00016712,2]
[401729125,1768349448770,-500.0,0.00016712,2]
[401729126,1768349448780,-532.79680718,0.00016712,2]
[401729127,1768349448789,-500.0,0.00016712,2]
[401729128,1768349448798,-500.0,0.00016712,2]
[401729129,1768349448808,-500.0,0.00016712,2]
[401729130,1768349448817,-500.0,0.00016712,2]
[401729131,1768349448826,-500.0,0.00016712,2]
[401729132,1768349448835,-500.0,0.00016712,2]
[401729133,1768349448844,-543.66473454,0.00016712,2]
[401729134,1768349448854,-500.0,0.00016712,2]
[401729135,1768349448863,-500.0,0.00016712,2]
[401729136,1768349448873,-324.90827055,0.00016712,2]
[401729137,1768349448883,-500.0,0.00016712,2]
[401729138,1768349448892,-1218.82,0.00016712,2]
[401729139,1768349448902,-500.0,0.00016712,2]
[401729140,1768349448913,-587.0,0.00016713,2]
[401729141,1768349448922,-587.0,0.00016768,2]
[401729142,1768349448932,-587.0,0.00016822,2]
[401729143,1768349448942,-2865.4,0.00016832,2]
[401729144,1768349448951,-587.0,0.00016877,2]
[401729145,1768349448961,-166.5238076,0.00016912,2]
[401729146,1768349448970,-587.0,0.00016932,2]
[401729147,1768349448981,-1500.0,0.00016968,2]
[401729148,1768349448994,-153.52,0.00016974,2]
[401729149,1768349449004,-500.0,0.00016986,2]
[401729150,1768349449014,-151.0,0.00016986,2]
[401729151,1768349449023,-500.0,0.00016986,2]
[401729152,1768349449033,-703.69,0.00016986,2]
[401729153,1768349449042,-606.67,0.00016986,2]
[401729154,1768349449051,-500.0,0.00016986,2]
[401729155,1768349449060,-500.0,0.00016986,2]
[401729156,1768349449069,-541.28587466,0.00016986,2]
[401729157,1768349449081,-571.52574434,0.00016986,2]
[401729158,1768349449091,-500.0,0.00016986,2]
[401729159,1768349449101,-500.0,0.00016986,2]
[401729160,1768349449111,-865.04,0.00016986,2]
[401729161,1768349449120,-500.0,0.00016986,2]
[401729162,1768349449129,-767.4,0.00016986,2]
[401729163,1768349449138,-500.0,0.00016986,2]
[401729164,1768349449148,-531.24,0.00016986,2]
[401729165,1768349449157,-500.0,0.00016986,2]
[401729166,1768349449166,-718.56,0.00016986,2]
[401729167,1768349449175,-500.0,0.00016986,2]
[401729168,1768349449185,-500.0,0.00016986,2]
[401729169,1768349449197,-789.39,0.00016986,2]
[401729170,1768349449206,-500.0,0.00016986,2]
[401729171,1768349449215,-500.0,0.00016986,2]
[401729172,1768349449225,-1671.94,0.00016986,2]
[401729173,1768349449235,-500.0,0.00016986,2]
[401729174,1768349449244,-500.0,0.00016986,2]
[401729175,1768349449253,-500.0,0.00016986,2]
[401729176,1768349449262,-620.98982577,0.00016986,2]
[401729177,1768349449272,-890.39,0.00016986,2]
[401729178,1768349449281,-500.0,0.00016986,2]
[401729179,1768349449291,-500.0,0.00016986,2]
[401729180,1768349449300,-500.0,0.00016986,2]